bitfinex/quotes_SOLUSD_20220208
["timestamp","ask_amount","ask_price","bid_price","bid_amount"]
[1644296620813,1.70130886,118.32,118.28,12.6792]
[1644296621014,1.70130886,118.32,118.28,24.9392]
[1644296621214,1.70130886,118.32,118.28,25.1892]
[1644296621814,1.70130886,118.32,118.28,24.9392]
[1644296622217,1.70130886,118.32,118.28,25.1892]
[1644296623218,1.70130886,118.32,118.28,24.9392]
[1644296623419,1.70130886,118.32,118.28,25.1892]
[1644296624217,1.70130886,118.32,118.28,24.9392]
[1644296624620,44.02152743,118.31,118.28,24.9392]
[1644296624818,44.02152743,118.31,118.29,3.03219997]
[1644296625019,45.90972438,118.31,118.29,3.03219997]
[1644296625421,45.90972438,118.31,118.27,24.9423]
[1644296625720,45.90972438,118.31,118.27,25.1923]
[1644296626320,45.90972438,118.31,118.27,24.9423]
[1644296626521,45.90972438,118.31,118.25,12.6838]
[1644296630023,45.90972438,118.31,118.25,31.1938]
[1644296630622,45.90972438,118.31,118.25,30.9438]
[1644296630823,45.90972438,118.31,118.25,24.9438]
[1644296632230,46.15972438,118.31,118.25,24.9438]
[1644296632633,45.90972438,118.31,118.25,24.9438]
[1644296632830,45.90972438,118.31,118.25,25.1938]
[1644296634232,45.90972438,118.31,118.25,24.9438]
[1644296636333,46.15972438,118.31,118.25,24.9438]
[1644296637435,45.90972438,118.31,118.25,24.9438]
[1644296638738,46.15972438,118.31,118.25,24.9438]
[1644296639239,46.15972438,118.31,118.25,12.26]
[1644296640839,58.84522438,118.31,118.25,12.26]
[1644296641440,1.88819695,118.31,118.25,26.62403049]
[1644296641644,1.70130886,118.32,118.25,32.87403049]
[1644296642441,42.11204748,118.32,118.25,32.87403049]
[1644296643042,54.93144748,118.32,118.25,32.87403049]
[1644296644242,54.93144748,118.32,118.25,31.1943]
[1644296645245,55.18144748,118.32,118.25,31.1943]
[1644296645745,55.18144748,118.32,118.25,32.87403049]
[1644296646749,55.18144748,118.32,118.25,31.1943]
[1644296647250,55.18144748,118.32,118.25,30.9443]
[1644296647450,55.18144748,118.32,118.25,12.6843]
[1644296647649,55.18144748,118.32,118.24,12.6861]
[1644296647850,42.36204748,118.32,118.24,12.6861]
[1644296648852,55.04634748,118.32,118.24,12.6861]
[1644296651572,54.79634748,118.32,118.24,12.6861]
[1644296655273,55.04634748,118.32,118.24,12.6861]
[1644296655474,42.11204748,118.32,118.25,51.36636836]
[1644296655675,42.11204748,118.32,118.27,12.6797]
[1644296655874,42.11204748,118.32,118.28,12.26]
[1644296656278,1.70130886,118.32,118.28,12.26]
[1644296656476,1.70130886,118.32,118.28,54.5205]
[1644296656677,1.70130886,118.32,118.29,12.6794]
[1644296656876,1.70130886,118.32,118.3,4.17620299]
[1644296657279,1.70130886,118.32,118.3,52.93338901]
[1644296657479,8.86e-06,118.32,118.3,52.93338901]
[1644296657681,2.40851254,118.4,118.31,220.22]
[1644296657880,3.61276881,118.44,118.32,12.26]
[1644296658079,2.40851254,118.45,118.32,12.26]
[1644296658080,2.40851254,118.45,118.35,153.22]
[1644296658280,3.02842402,118.47,118.35,153.47]
[1644296658480,41.74931491,118.46,118.36,12.26]
[1644296658682,41.74931491,118.46,118.36,18.26]
[1644296658887,41.74931491,118.46,118.36,24.9317]
[1644296659286,41.74931491,118.46,118.36,25.1817]
[1644296659681,41.74931491,118.46,118.36,31.1817]
[1644296659881,41.74931491,118.46,118.36,32.61143049]
[1644296660082,41.74931491,118.46,118.36,31.1817]
[1644296660282,41.99931491,118.46,118.36,31.1817]
[1644296660487,41.74931491,118.46,118.36,31.1817]
[1644296660884,64.0,118.45,118.32,38.31207745]
[1644296661083,78.8044533,118.45,118.3,153.22]
[1644296661290,46.4978,118.44,118.3,153.22]
[1644296661489,46.4978,118.44,118.33,12.6759]
[1644296662090,36.76749444,118.43,118.33,49.45321736]
[1644296662290,36.76749444,118.43,118.34,12.26]
[1644296662495,36.76749444,118.43,118.35,36.53684268]
[1644296662694,36.76749444,118.43,118.35,12.26]
[1644296663386,36.76749444,118.43,118.35,12.51]
[1644296663587,36.76749444,118.43,118.37,12.6716]
[1644296663789,46.4978,118.44,118.38,12.26]
[1644296663990,0.61991148,118.47,118.38,12.26]
[1644296664188,0.61991148,118.47,118.38,12.51]
[1644296664387,0.61991148,118.47,118.38,14.18973049]
[1644296664588,0.61991148,118.47,118.39,12.6678]
[1644296664789,35.03550322,118.46,118.4,12.26]
[1644296665189,0.61991148,118.47,118.41,45.35816381]
[1644296665390,0.61991148,118.47,118.41,57.61816381]
[1644296665590,0.61991148,118.47,118.41,76.53496381]
[1644296665790,0.61991148,118.47,118.41,78.2146943]
[1644296665992,0.2983502,118.48,118.43,153.22]
[1644296666191,0.2983502,118.48,118.45,35.37364078]
[1644296666492,0.2983502,118.48,118.47,45.35816381]
[1644296666696,12.6978,118.57,118.47,57.61816381]
[1644296666889,12.6978,118.57,118.47,57.86816381]
[1644296667392,43.52591004,118.56,118.47,70.27566381]
[1644296667790,43.52591004,118.56,118.47,24.9175]
[1644296667991,43.52591004,118.56,118.47,12.26]
[1644296668389,43.52591004,118.56,118.47,25.1694]
[1644296668589,49.52591004,118.56,118.47,25.1694]
[1644296668790,49.52591004,118.56,118.48,35.10416587]
[1644296668992,49.52591004,118.56,118.5,41.88771199]
[1644296669191,49.52591004,118.56,118.49,12.26]
[1644296669391,43.52591004,118.56,118.5,24.9159]
[1644296670292,0.18872736,118.61,118.51,34.48435678]
[1644296670493,0.18872736,118.61,118.53,12.6525]
[1644296670695,0.18872736,118.61,118.54,12.26]
[1644296671097,0.18872736,118.61,118.54,18.51]
[1644296671294,0.18872736,118.61,118.55,40.22810915]
[1644296671498,0.18872736,118.61,118.56,178.128]
[1644296671697,0.18872736,118.61,118.56,178.378]
[1644296671896,0.18872736,118.61,118.56,178.128]
[1644296672095,0.18872736,118.61,118.56,165.48]
[1644296672498,0.18872736,118.61,118.56,25.1583]
[1644296672697,0.18872736,118.61,118.57,153.22]
[1644296672898,0.18872736,118.61,118.58,12.26]
[1644296673097,0.18872736,118.61,118.59,43.49755534]
[1644296673300,0.37745472,118.61,118.6,12.26]
[1644296674497,48.1871,118.7,118.6,165.73]
[1644296674697,48.1871,118.7,118.61,153.22]
[1644296674899,48.1871,118.7,118.62,12.26]
[1644296675098,12.5271,118.72,118.62,12.26]
[1644296675297,37.16460148,118.7,118.62,24.902]
[1644296675498,37.16460148,118.7,118.62,12.26]
[1644296675697,37.41460148,118.7,118.62,12.26]
[1644296676800,43.41460148,118.7,118.62,12.26]
[1644296677399,45.54465478,118.7,118.63,12.26]
[1644296677598,21.376318,118.69,118.53,42.1594]
[1644296677798,47.5653,118.69,118.54,165.48]
[1644296677998,36.40352583,118.68,118.54,165.48]
[1644296678198,36.40352583,118.68,118.54,171.48]
[1644296678598,36.40352583,118.68,118.54,165.48]
[1644296678799,2.1300533,118.67,118.54,165.48]
[1644296679000,2.1300533,118.67,118.54,12.26]
[1644296679001,39.398776,118.66,118.54,12.26]
[1644296679200,180.1,118.65,118.52,12.26]
[1644296679504,55.871197,118.64,118.51,12.26]
[1644296679700,47.7195154,118.63,118.51,12.26]
[1644296679900,49.8495687,118.63,118.49,12.26]
[1644296680101,2.1300533,118.62,118.49,12.26]
[1644296680300,15.09453394,118.62,118.44,153.22]
[1644296680501,113.1,118.59,118.45,12.26]
[1644296680704,121.859,118.59,118.46,12.26]
[1644296680901,2.1300533,118.58,118.46,12.26]
[1644296681304,45.15017002,118.57,118.46,12.26]
[1644296681502,45.15017002,118.57,118.47,35.17762996]
[1644296681703,45.15017002,118.57,118.48,12.26]
[1644296681902,45.15017002,118.57,118.49,38.80588567]
[1644296682503,45.15017002,118.57,118.44,1.67973049]
[1644296682504,45.15017002,118.57,118.46,12.6582]
[1644296682703,45.15017002,118.57,118.47,10.13]
[1644296682904,2.1300533,118.56,118.47,10.13]
[1644296683106,2.1300533,118.56,118.45,10.13]
[1644296683503,48.07856162,118.55,118.45,50.90446257]
[1644296684304,48.07856162,118.55,118.45,51.15446257]
[1644296684907,48.32856162,118.55,118.45,50.90446257]
[1644296685510,48.32856162,118.55,118.45,51.15446257]
[1644296686108,48.07856162,118.55,118.45,51.15446257]
[1644296687313,48.32856162,118.55,118.45,51.15446257]
[1644296687511,54.32856162,118.55,118.45,51.15446257]
[1644296687711,54.32856162,118.55,118.45,63.81386257]
[1644296687911,54.32856162,118.55,118.45,50.90446257]
[1644296689714,54.32856162,118.55,118.45,51.15446257]
[1644296689916,54.07856162,118.55,118.45,51.15446257]
[1644296690111,48.07856162,118.55,118.45,51.15446257]
[1644296690512,48.07856162,118.55,118.45,58.83419306]
[1644296690914,48.07856162,118.55,118.45,50.90446257]
[1644296691112,48.07856162,118.55,118.45,10.13]
[1644296691314,50.20861492,118.55,118.45,10.13]
[1644296691935,56.20861492,118.55,118.45,10.13]
[1644296692138,54.07856162,118.55,118.46,43.3164998]
[1644296692336,54.07856162,118.55,118.47,10.13]
[1644296693839,54.32856162,118.55,118.47,10.13]
[1644296694139,54.32856162,118.55,118.48,45.64415375]
[1644296696241,54.32856162,118.55,118.48,55.77415375]
[1644296697843,54.32856162,118.55,118.48,10.13]
[1644296701150,35.9129303,118.54,118.45,10.13]
[1644296701345,20.261394,118.53,118.41,10.13]
[1644296701544,2.1300533,118.53,118.42,10.13]
[1644296701744,2.1300533,118.52,118.42,10.13]
[1644296701945,40.45054284,118.51,118.43,41.93571071]
[1644296702243,40.45054284,118.51,118.43,52.06571071]
[1644296703644,2.1300533,118.55,118.43,52.06571071]
[1644296703847,6.0,118.51,118.43,53.9954412]
[1644296704045,24.7128,118.58,118.43,53.9954412]
[1644296704245,6.0,118.51,118.43,53.9954412]
[1644296704444,23.8187,118.57,118.43,53.9954412]
[1644296704645,63.14504414,118.57,118.43,59.9954412]
[1644296704945,70.33962429,118.57,118.45,34.3338586]
[1644296705146,70.58962429,118.57,118.46,10.13]
[1644296705347,70.58962429,118.57,118.47,39.17138648]
[1644296705747,1.19458015,118.56,118.48,10.13]
[1644296705948,42.94920467,118.55,118.49,43.07641759]
[1644296706349,42.94920467,118.55,118.49,53.20641759]
[1644296707347,44.14378482,118.55,118.49,53.20641759]
[1644296708950,44.14378482,118.55,118.49,10.13]
[1644296709451,1.19458015,118.54,118.49,10.13]
[1644296709649,1.19458015,118.53,118.49,10.13]
[1644296709850,46.04607162,118.52,118.49,10.13]
[1644296710051,1.88819695,118.51,118.49,10.13]
[1644296710450,1.88819695,118.51,118.5,1.14400302]
[1644296710651,1.88819695,118.51,118.5,11.27400302]
[1644296710855,46.04607162,118.52,118.5,10.13]
[1644296711052,1.19458015,118.53,118.5,10.13]
[1644296711251,23.8187,118.57,118.5,10.13]
[1644296711252,1.88819695,118.52,118.5,10.13]
[1644296711451,6.0,118.53,118.5,10.13]
[1644296711651,1.19458015,118.55,118.5,10.13]
[1644296712052,1.19458015,118.55,118.51,47.32849279]
[1644296712353,34.47200203,118.56,118.52,10.13]
[1644296714151,40.47200203,118.56,118.52,10.13]
[1644296714352,1.19458015,118.58,118.52,10.13]
[1644296714652,0.25,118.56,118.52,10.13]
[1644296714853,1.44458015,118.58,118.52,10.13]
[1644296715152,1.19458015,118.57,118.52,10.13]
[1644296715352,1.19458015,118.57,118.5,10.13]
[1644296715552,1.19458015,118.56,118.5,10.13]
[1644296715751,43.22222335,118.56,118.5,10.13]
[1644296716354,43.22222335,118.56,118.51,35.49421525]
[1644296716754,43.22222335,118.56,118.5,10.13]
[1644296717358,43.22222335,118.56,118.48,10.13]
[1644296717558,1.19458015,118.55,118.48,10.13]
[1644296717754,37.51224379,118.54,118.48,10.13]
[1644296719657,37.51224379,118.54,118.48,44.80372203]
[1644296720958,37.51224379,118.54,118.48,10.13]
[1644296721658,43.51224379,118.54,118.48,10.13]
[1644296721859,43.76224379,118.54,118.48,53.09098518]
[1644296722058,37.76224379,118.54,118.48,53.09098518]
[1644296722460,37.76224379,118.54,118.48,10.13]
[1644296722661,1.62549797,118.56,118.48,10.13]
[1644296722862,1.19458015,118.55,118.48,24.71893049]
[1644296723061,0.43091782,118.56,118.48,44.41655508]
[1644296723362,0.43091782,118.56,118.49,126.59]
[1644296723562,0.43091782,118.56,118.5,10.13]
[1644296723765,0.43091782,118.56,118.51,12.6536]
[1644296723965,0.43091782,118.56,118.52,51.49864009]
[1644296724563,0.43091782,118.56,118.52,10.13]
[1644296724763,0.43091782,118.56,118.53,12.6531]
[1644296724962,0.43091782,118.56,118.54,10.13]
[1644296725163,0.43091782,118.56,118.54,14.30620299]
[1644296725566,0.43091782,118.56,118.49,128.26973049]
[1644296725567,1.88819695,118.55,118.49,126.59]
[1644296725864,1.88819695,118.55,118.5,10.13]
[1644296725865,39.2174407,118.54,118.5,10.13]
[1644296726065,39.2174407,118.54,118.48,24.665]
[1644296726066,39.2174407,118.54,118.51,10.13]
[1644296726266,39.2174407,118.54,118.52,10.13]
[1644296726864,6.0,118.55,118.52,10.13]
[1644296727265,0.43091782,118.56,118.52,10.13]
[1644296727465,6.0,118.55,118.52,10.13]
[1644296727875,0.43091782,118.56,118.53,40.12474671]
[1644296728068,0.43091782,118.56,118.54,10.13]
[1644296729668,3.03219997,118.55,118.54,10.13]
[1644296729865,0.43091782,118.56,118.54,10.13]
[1644296730268,34.69616391,118.58,118.54,10.13]
[1644296733771,34.94616391,118.58,118.54,10.13]
[1644296735673,34.94616391,118.58,118.52,12.6554]
[1644296735875,36.14074406,118.58,118.52,22.7854]
[1644296736076,35.78012339,118.58,118.52,22.7854]
[1644296736874,35.78012339,118.58,118.5,10.13]
[1644296737075,1.19458015,118.57,118.5,10.13]
[1644296737675,48.63142787,118.56,118.5,10.13]
[1644296738276,49.82600802,118.56,118.5,10.13]
[1644296738878,49.82600802,118.56,118.48,24.665]
[1644296739180,1.19458015,118.54,118.46,34.6224]
[1644296739776,46.66219376,118.53,118.47,44.50517352]
[1644296740176,46.66219376,118.53,118.47,54.63517352]
[1644296740378,46.66219376,118.53,118.47,54.88517352]
[1644296740779,46.66219376,118.53,118.47,23.0408]
[1644296740980,46.91219376,118.53,118.47,10.13]
[1644296741880,46.91219376,118.53,118.47,53.755139]
[1644296742479,46.66219376,118.53,118.47,53.755139]
[1644296743381,1.19458015,118.56,118.47,54.005139]
[1644296743680,1.19458015,118.56,118.47,66.665939]
[1644296743885,7.19458015,118.56,118.47,66.665939]
[1644296744283,1.19458015,118.55,118.47,66.665939]
[1644296744485,48.36132252,118.55,118.47,66.665939]
[1644296744682,48.61132252,118.55,118.47,66.665939]
[1644296745283,47.41674237,118.55,118.47,66.665939]
[1644296747186,47.41674237,118.55,118.47,56.535939]
[1644296748708,1.19458015,118.56,118.47,56.535939]
[1644296748907,1.19458015,118.56,118.5,12.6559]
[1644296749107,1.19458015,118.57,118.51,12.17]
[1644296749308,1.19458015,118.59,118.51,166.20054922]
[1644296749513,1.19458015,118.6,118.51,14.11054922]
[1644296749707,1.19458015,118.61,118.54,35.34831564]
[1644296749907,1.19458015,118.61,118.56,37.64315057]
[1644296750109,47.28664671,118.6,118.57,24.8195]
[1644296750307,47.28664671,118.6,118.58,12.17]
[1644296751707,1.19458015,118.61,118.58,12.17]
[1644296751911,1.19458015,118.62,118.58,12.17]
[1644296752114,0.25,118.61,118.58,12.17]
[1644296752309,1.44458015,118.62,118.58,12.17]
[1644296752510,1.19458015,118.62,118.58,24.8193]
[1644296752715,1.19458015,118.62,118.58,59.78139502]
[1644296752916,35.51944794,118.63,118.58,59.78139502]
[1644296753812,34.32486779,118.63,118.58,59.78139502]
[1644296755913,34.07383004,118.63,118.58,59.78139502]
[1644296756113,34.32383004,118.63,118.58,59.78139502]
[1644296758117,0.25,118.63,118.58,59.78139502]
[1644296758316,1.19458015,118.64,118.58,59.78139502]
[1644296758518,7.44458015,118.64,118.58,59.78139502]
[1644296759217,43.71938751,118.63,118.58,59.78139502]
[1644296759417,43.71938751,118.63,118.58,24.8193]
[1644296760217,43.96938751,118.63,118.58,24.8193]
[1644296760420,0.25,118.63,118.58,24.8193]
[1644296761423,7.19458015,118.64,118.6,12.6472]
[1644296761622,7.19458015,118.64,118.61,12.17]
[1644296761822,6.0,118.64,118.61,12.17]
[1644296762222,1.19458015,118.65,118.61,12.17]
[1644296762426,1.19458015,118.65,118.62,37.28799657]
[1644296762624,48.1831485,118.66,118.62,37.28799657]
[1644296762829,48.1831485,118.66,118.61,12.17]
[1644296763025,48.4331485,118.66,118.61,12.17]
[1644296763925,48.4331485,118.66,118.61,47.41146584]
[1644296764124,48.1831485,118.66,118.61,60.05756584]
[1644296764525,46.98856835,118.66,118.61,60.05756584]
[1644296764727,46.98856835,118.66,118.61,24.8161]
[1644296764929,48.1831485,118.66,118.61,24.8161]
[1644296765828,52.98856835,118.66,118.61,24.8161]
[1644296766030,52.98856835,118.66,118.62,42.25805529]
[1644296766627,52.98856835,118.66,118.61,24.8161]
[1644296767027,1.19458015,118.67,118.61,24.8161]
[1644296767228,1.19458015,118.67,118.61,25.0661]
[1644296767432,1.19458015,118.68,118.61,25.0661]
[1644296767630,1.19458015,118.68,118.61,177.1561]
[1644296767829,32.14298015,118.69,118.61,177.1561]
[1644296768028,39.70722982,118.68,118.62,40.18780549]
[1644296768229,32.14298015,118.69,118.63,24.8132]
[1644296769029,7.13698904,118.69,118.63,24.8132]
[1644296769229,45.60697975,118.69,118.64,34.47375182]
[1644296769428,44.6623996,118.69,118.65,12.17]
[1644296769629,0.50135177,118.7,118.65,22.886]
[1644296769832,0.50135177,118.7,118.65,23.136]
[1644296770031,0.61914596,118.71,118.65,23.136]
[1644296770235,0.61914596,118.71,118.65,175.226]
[1644296770630,0.61914596,118.71,118.66,36.96007606]
[1644296770829,46.00794069,118.71,118.67,24.8067]
[1644296771230,0.61914596,118.71,118.67,12.17]
[1644296772332,0.61914596,118.71,118.68,55.72302584]
[1644296772534,0.61914596,118.71,118.69,12.17]
[1644296772733,6.06439994,118.7,118.69,12.17]
[1644296773335,0.61914596,118.71,118.69,12.17]
[1644296774335,6.06439994,118.7,118.69,12.17]
[1644296775139,51.92960345,118.7,118.69,12.17]
[1644296776137,52.17960345,118.7,118.69,12.17]
[1644296777041,6.06439994,118.7,118.69,12.17]
[1644296777240,0.61914596,118.71,118.69,12.17]
[1644296778241,49.08628047,118.71,118.69,12.17]
[1644296779942,0.61914596,118.71,118.69,12.17]
[1644296780944,37.48258719,118.71,118.69,12.17]
[1644296781348,37.73258719,118.71,118.69,12.17]
[1644296781558,6.06439994,118.7,118.64,24.8263]
[1644296781757,6.06439994,118.7,118.65,12.17]
[1644296782369,42.55940632,118.69,118.65,12.17]
[1644296783059,0.86914596,118.71,118.65,12.17]
[1644296783959,42.39285107,118.7,118.65,24.811]
[1644296784763,42.64285107,118.7,118.65,24.811]
[1644296785967,42.64285107,118.7,118.65,12.17]
[1644296787168,42.64285107,118.7,118.62,12.6436]
[1644296787368,48.64285107,118.7,118.62,12.17]
[1644296788166,48.64285107,118.7,118.63,34.50261637]
[1644296788367,48.64285107,118.7,118.62,12.17]
[1644296788775,55.28905107,118.7,118.62,12.17]
[1644296789171,61.28905107,118.7,118.62,12.17]
[1644296789969,55.28905107,118.7,118.62,12.17]
[1644296790370,61.28905107,118.7,118.62,12.17]
[1644296791570,48.64285107,118.7,118.62,24.8147]
[1644296791771,55.59105107,118.7,118.62,24.8147]
[1644296792472,68.23685107,118.7,118.62,24.8147]
[1644296792674,68.23685107,118.7,118.62,12.17]
[1644296793472,55.28865107,118.7,118.62,56.46239554]
[1644296793873,42.64285107,118.7,118.62,69.10689554]
[1644296794089,42.39285107,118.7,118.62,69.10689554]
[1644296794273,42.39285107,118.7,118.62,69.35689554]
[1644296794474,42.33529393,118.7,118.62,69.10689554]
[1644296797776,42.58529393,118.7,118.62,69.10689554]
[1644296801581,44.99380647,118.7,118.62,69.10689554]
[1644296802684,42.58529393,118.7,118.62,69.10689554]
[1644296804686,48.58529393,118.7,118.62,69.10689554]
[1644296804887,42.58529393,118.7,118.62,69.10689554]
[1644296805087,48.58529393,118.7,118.62,69.10689554]
[1644296805288,42.58529393,118.7,118.62,69.10689554]
[1644296805685,48.58529393,118.7,118.62,69.10689554]
[1644296805886,44.99380647,118.7,118.62,69.10689554]
[1644296806188,50.99380647,118.7,118.62,69.10689554]
[1644296806485,48.58529393,118.7,118.62,69.10689554]
[1644296807288,50.99380647,118.7,118.62,69.10689554]
[1644296811892,46.20461508,118.68,118.62,69.10689554]
[1644296812293,46.20461508,118.68,118.62,24.8145]
[1644296812493,46.20461508,118.68,118.62,12.17]
[1644296812694,48.61312762,118.68,118.62,12.17]
[1644296813798,61.26012762,118.68,118.62,12.17]
[1644296813996,4.814028,118.67,118.6,12.17]
[1644296814196,2.40851254,118.66,118.58,12.17]
[1644296814396,6.9440813,118.66,118.58,12.17]
[1644296814796,37.98277475,118.65,118.59,48.34457716]
[1644296815797,50.88317475,118.65,118.59,48.34457716]
[1644296815999,56.88317475,118.65,118.59,48.34457716]
[1644296816200,2.1300533,118.64,118.57,12.17]
[1644296816402,2.1300533,118.64,118.56,12.17]
[1644296816601,27.44846584,118.64,118.53,12.17]
[1644296816902,22.9099,118.64,118.55,12.653]
[1644296817100,45.88624944,118.63,118.56,52.20291856]
[1644296817801,22.6964,118.65,118.56,52.20291856]
[1644296818001,35.3451,118.65,118.57,12.6505]
[1644296818400,12.6487,118.65,118.57,12.6505]
[1644296818601,23.3856,118.66,118.57,12.9005]
[1644296818801,37.99277579,118.64,118.58,51.04222138]
[1644296819004,23.3856,118.66,118.58,51.04222138]
[1644296819202,22.7925,118.68,118.58,51.29222138]
[1644296819402,22.7925,118.68,118.59,12.6475]
[1644296819403,12.6466,118.67,118.59,12.6475]
[1644296819603,12.6466,118.67,118.6,12.17]
[1644296819805,22.7925,118.68,118.6,12.17]
[1644296820004,35.84152052,118.67,118.61,37.95090483]
[1644296820707,28.7925,118.68,118.61,37.95090483]
[1644296821107,29.0425,118.68,118.61,37.95090483]
[1644296821706,12.6472,118.67,118.61,50.59700483]
[1644296822820,45.48974313,118.66,118.61,50.59700483]
[1644296823418,45.48974313,118.66,118.61,37.95090483]
[1644296823620,58.13784313,118.66,118.61,37.95090483]
[1644296824719,58.38784313,118.66,118.61,37.95090483]
[1644296825419,58.38784313,118.66,118.6,12.6478]
[1644296826425,58.38784313,118.66,118.61,38.63095475]
[1644296826724,2.40851254,118.69,118.61,51.52775475]
[1644296826924,4.80700587,118.7,118.62,12.17]
[1644296827122,50.9090585,118.71,118.62,12.17]
[1644296827321,6.0,118.7,118.62,12.17]
[1644296827524,34.58298269,118.7,118.62,12.17]
[1644296827721,40.58298269,118.7,118.62,12.17]
[1644296828124,40.58298269,118.7,118.63,43.67741047]
[1644296828422,50.9090585,118.71,118.63,43.67741047]
[1644296828621,0.61914596,118.71,118.64,12.6436]
[1644296828822,0.61914596,118.71,118.65,12.17]
[1644296829225,0.61914596,118.71,118.65,12.42]
[1644296829426,0.61914596,118.71,118.66,38.81906061]
[1644296829624,0.61914596,118.71,118.67,12.17]
[1644296829823,0.61914596,118.71,118.68,12.6385]
[1644296830024,0.61914596,118.71,118.68,61.96819002]
[1644296831227,0.61914596,118.71,118.68,24.8085]
[1644296832026,0.61914596,118.71,118.68,12.17]
[1644296832226,38.16862876,118.7,118.68,12.17]
[1644296832428,38.16862876,118.7,118.66,60.47918157]
[1644296832626,38.41862876,118.7,118.66,60.47918157]
[1644296833027,38.41862876,118.7,118.66,12.17]
[1644296833625,0.25,118.7,118.66,12.17]
[1644296833827,0.61914596,118.71,118.66,12.17]
[1644296834627,0.61914596,118.71,118.67,36.49103731]
[1644296835026,0.61914596,118.71,118.68,12.17]
[1644296835226,0.61914596,118.71,118.69,12.17]
[1644296836030,45.68899277,118.7,118.69,12.17]
[1644296836534,51.75339271,118.7,118.69,12.17]
[1644296837430,48.72119274,118.7,118.69,12.17]
[1644296837629,45.68899277,118.7,118.69,12.17]
[1644296839230,0.61914596,118.71,118.69,12.17]
[1644296840232,37.19191618,118.7,118.69,12.17]
[1644296840430,43.25631612,118.7,118.69,12.17]
[1644296841033,6.06439994,118.7,118.69,12.17]
[1644296841230,3.03219997,118.7,118.69,12.17]
[1644296841433,0.02156431,118.7,118.69,12.17]
[1644296848836,45.50124229,118.78,118.7,43.06755557]
[1644296849035,43.09272975,118.78,118.72,45.69712571]
[1644296849236,43.09272975,118.78,118.72,57.86712571]
[1644296849638,43.09272975,118.78,118.72,12.17]
[1644296849837,55.72922975,118.78,118.72,12.17]
[1644296850036,43.34272975,118.78,118.72,12.17]
[1644296850236,49.34272975,118.78,118.72,12.17]
[1644296850838,61.97892975,118.78,118.72,12.17]
[1644296851439,61.97892975,118.78,118.7,12.17]
[1644296851638,61.97892975,118.78,118.69,12.17]
[1644296851639,64.10898305,118.78,118.69,12.17]
[1644296851839,66.51749559,118.78,118.69,12.17]
[1644296852239,66.51749559,118.78,118.69,54.94927514]
[1644296852939,12.6399,118.75,118.69,12.17]
[1644296853740,36.31621116,118.74,118.69,12.17]
[1644296856041,48.95641116,118.74,118.69,12.17]
[1644296856241,49.20641116,118.74,118.69,12.17]
[1644296856743,49.20641116,118.74,118.67,48.946]
[1644296857645,49.20641116,118.74,118.67,36.3067]
[1644296858643,51.33646446,118.74,118.67,12.17]
[1644296858844,51.33646446,118.74,118.64,24.812]
[1644296859045,77.279077,118.74,118.64,12.17]
[1644296859344,74.87056446,118.74,118.64,12.42]
[1644296859544,74.87056446,118.74,118.64,52.52989257]
[1644296859745,77.279077,118.74,118.64,52.52989257]
[1644296859945,74.87056446,118.74,118.64,52.52989257]
[1644296860148,72.74051116,118.74,118.64,52.52989257]
[1644296860747,72.74051116,118.74,118.65,12.6417]
[1644296860945,72.74051116,118.74,118.65,24.8117]
[1644296861646,78.74051116,118.74,118.65,24.8117]
[1644296862246,2.1300533,118.73,118.65,24.77919]
[1644296862446,12.6428,118.72,118.65,24.77919]
[1644296862649,12.6428,118.72,118.65,12.17]
[1644296862847,14.7728533,118.72,118.65,12.17]
[1644296863046,14.7728533,118.72,118.63,24.8131]
[1644296863248,46.57845184,118.71,118.63,24.8131]
[1644296863448,35.9714712,118.69,118.63,24.8131]
[1644296863651,12.6445,118.7,118.64,37.15281223]
[1644296863848,23.4494,118.72,118.64,49.79571223]
[1644296864048,0.25,118.7,118.64,61.96571223]
[1644296864248,23.4494,118.72,118.64,61.96571223]
[1644296864651,47.79831923,118.71,118.64,61.96571223]
[1644296864849,2.40851254,118.75,118.64,63.92204207]
[1644296865049,2.40851254,118.75,118.64,69.92204207]